bitfinex/quotes_ETHUSD_20230831
["timestamp","ask_amount","ask_price","bid_price","bid_amount"]
[1693496471800,0.008,1695.7,1695.2,3.0]
[1693496472574,0.008,1695.7,1695.3,6.167]
[1693496472976,0.008,1695.7,1695.0,6.3]
[1693496473181,0.008,1695.7,1695.2,3.0]
[1693496473418,0.008,1695.7,1695.3,0.3]
[1693496473615,0.008,1695.7,1695.1,2.7262]
[1693496474872,0.008,1695.7,1695.2,9.167]
[1693496475295,0.008,1695.7,1695.2,6.167]
[1693496475484,0.54604716,1695.7,1695.1,2.7262]
[1693496475891,3.0,1696.0,1695.1,2.7262]
[1693496475892,3.0,1696.0,1695.2,3.0]
[1693496476092,0.3,1695.9,1695.3,0.3]
[1693496476316,3.54604716,1696.0,1695.3,0.3]
[1693496476537,0.54604716,1695.9,1695.3,0.3]
[1693496476696,0.54604716,1695.9,1695.3,6.467]
[1693496477105,0.54604716,1695.9,1695.3,0.3]
[1693496477310,0.54604716,1695.9,1695.1,2.7262]
[1693496477613,3.54604716,1695.9,1695.1,2.7262]
[1693496477815,3.54604716,1695.8,1695.1,2.7262]
[1693496478131,3.0,1695.5,1694.2,3.0]
[1693496478332,3.0,1695.5,1694.4,2.6259]
[1693496478333,1.02604716,1695.4,1694.4,2.6259]
[1693496478994,4.02604716,1695.4,1694.4,2.6259]
[1693496480334,3.0,1695.1,1694.4,2.6259]
[1693496480529,4.32604716,1695.0,1694.4,2.6259]
[1693496480830,3.78,1695.0,1694.5,0.002]
[1693496481040,3.0,1695.3,1694.5,0.002]
[1693496481220,3.0,1695.4,1694.5,0.002]
[1693496481599,7.17404716,1695.3,1694.5,0.002]
[1693496481799,3.628,1695.0,1694.0,0.002]
[1693496482036,3.0,1695.2,1694.1,3.0]
[1693496482337,0.008,1695.1,1694.5,2.95]
[1693496482538,0.008,1695.1,1694.3,2.95]
[1693496482700,0.05,1694.9,1694.3,2.95]
[1693496482909,0.008,1694.8,1694.3,2.95]
[1693496483116,0.008,1694.8,1694.7,2.95]
[1693496483422,2.17398418,1696.3,1694.0,0.3022]
[1693496483423,0.05,1695.6,1694.9,9.117]
[1693496484252,2.9777433,1695.6,1694.9,2.95]
[1693496484613,0.05,1695.6,1694.9,2.95]
[1693496484854,6.628,1696.2,1694.9,2.95]
[1693496484855,0.05,1695.8,1694.9,2.95]
[1693496485015,0.05,1695.8,1695.1,9.117]
[1693496485436,2.9777433,1695.8,1695.1,9.117]
[1693496485655,0.05,1695.6,1694.9,2.95]
[1693496485949,0.05,1695.6,1694.9,5.8777433]
[1693496486152,0.05,1695.6,1695.0,0.58777433]
[1693496486652,0.00518452,1695.5,1695.0,0.58777433]
[1693496487263,0.00518452,1695.5,1694.8,2.5761]
[1693496487264,3.52379046,1695.4,1694.8,2.5761]
[1693496487561,0.00518452,1695.3,1694.8,5.5261]
[1693496487714,0.00518452,1695.4,1694.8,2.5761]
[1693496487917,0.05,1695.0,1694.8,2.5761]
[1693496488116,2.9777433,1695.0,1694.8,2.5761]
[1693496488318,0.05,1694.8,1694.0,0.3022]
[1693496488656,0.00518452,1694.7,1694.2,2.95]
[1693496489618,0.04928352,1694.8,1694.1,11.79261648]
[1693496489817,0.04928352,1694.5,1694.1,2.6249]
[1693496490121,2.97702682,1694.5,1694.1,2.6249]
[1693496490339,0.04928352,1694.3,1694.1,2.6249]
[1693496491373,0.04928352,1693.8,1693.2,0.1]
[1693496491675,0.04928352,1693.3,1693.2,0.1]
[1693496491860,2.9277433,1693.3,1693.2,0.1]
[1693496492063,0.04928352,1693.5,1693.2,0.1]
[1693496492274,0.04928352,1693.3,1693.2,0.1]
[1693496492477,0.04928352,1693.3,1692.9,1.15285]
[1693496492478,0.04928352,1693.0,1692.9,1.15285]
[1693496492660,0.04928352,1693.0,1692.4,0.1]
[1693496492661,5.0,1692.7,1692.4,0.1]
[1693496492850,5.0,1692.7,1692.0,0.1]
[1693496492851,0.04928352,1692.1,1692.0,0.1]
[1693496493051,9.60502682,1692.1,1692.0,0.1]
[1693496493247,9.60502682,1692.1,1691.0,0.00493565]
[1693496493248,1.40605069,1691.6,1691.0,0.00493565]
[1693496493480,6.0,1692.0,1691.0,0.00493565]
[1693496493481,6.59864589,1691.1,1691.0,0.00493565]
[1693496493655,2.0,1690.6,1688.9,2.11484154]
[1693496493861,0.65986459,1691.1,1688.3,3.17110537]
[1693496493862,2.0,1690.1,1688.3,3.17110537]
[1693496494108,2.0,1690.1,1687.9,1.54053078]
[1693496494109,4.59864589,1690.4,1686.4,21.73962314]
[1693496494110,4.59864589,1689.4,1686.4,21.73962314]
[1693496494384,4.59864589,1689.4,1687.8,3.45618696]
[1693496494385,2.4371874,1688.2,1687.8,3.45618696]
[1693496494595,2.4371874,1688.2,1687.3,4.50795466]
[1693496494596,4.15999148,1688.8,1687.3,4.50795466]
[1693496494740,2.9277433,1687.6,1686.2,0.0057789]
[1693496494940,0.74709648,1687.0,1686.7,0.55424091]
[1693496495192,3.0,1687.5,1686.9,0.60376037]
[1693496495193,1.48178376,1687.5,1686.9,0.60376037]
[1693496495356,1.48178376,1686.9,1686.4,0.60495127]
[1693496495559,0.48,1686.8,1685.7,0.66839793]
[1693496495774,3.0,1687.8,1685.7,0.66839793]
[1693496495775,7.13040686,1688.0,1685.7,4.49017797]
[1693496496087,7.13040686,1688.0,1685.5,0.1]
[1693496496088,15.32,1687.9,1686.0,4.16078678]
[1693496496386,3.628,1687.1,1685.5,0.1]
[1693496496604,0.48,1687.0,1686.1,4.06078678]
[1693496496766,0.48,1687.0,1686.4,1.13078678]
[1693496496966,3.628,1688.0,1686.4,1.13078678]
[1693496497169,0.61957452,1688.1,1686.7,3.628]
[1693496497357,0.61957452,1688.1,1686.6,1.13078678]
[1693496497560,2.0,1687.6,1685.8,0.58661269]
[1693496497880,2.0,1687.6,1684.4,0.5882]
[1693496497881,2.0,1686.7,1685.5,1.23078678]
[1693496498081,11.84,1687.4,1685.9,5.979]
[1693496498278,11.84,1687.4,1687.2,1.13078678]
[1693496498478,5.979,1688.6,1686.4,3.0]
[1693496498479,2.0,1687.8,1686.4,3.0]
[1693496498691,2.0,1687.4,1687.0,1.13078678]
[1693496498889,3.0,1688.0,1684.9,2.0]
[1693496498890,2.0,1687.1,1685.1,3.0]
[1693496499056,2.0,1687.1,1686.2,3.0]
[1693496499057,0.004,1687.0,1686.2,3.0]
[1693496499255,0.004,1687.0,1686.9,1.13078678]
[1693496499456,2.0,1687.3,1687.1,1.13078678]
[1693496499656,2.0,1687.1,1685.8,0.002]
[1693496499971,2.004,1687.0,1686.9,1.13078678]
[1693496500170,2.0,1687.1,1686.8,3.0]
[1693496500366,13.94973544,1688.6,1688.2,1.13078678]
[1693496500574,13.94973544,1688.6,1688.5,1.13078678]
[1693496500575,10.94973544,1688.6,1688.5,1.13078678]
[1693496500778,0.61923652,1689.0,1688.6,1.13078678]
[1693496500980,0.69073644,1688.9,1688.8,1.13078678]
[1693496501183,0.63320811,1689.5,1689.4,1.13078678]
[1693496501393,11.41429203,1689.6,1689.5,1.13078678]
[1693496501696,1.6154326,1690.1,1689.0,7.3845674]
[1693496501895,1.6154326,1689.0,1687.6,7.3845674]
[1693496502099,0.70567323,1690.0,1689.1,1.3845674]
[1693496502262,0.70567323,1690.0,1689.0,6.0]
[1693496502263,1.6154326,1690.1,1689.3,1.3845674]
[1693496502459,0.64587573,1690.2,1689.8,1.3845674]
[1693496502699,0.72796004,1690.1,1689.8,0.73845674]
[1693496502902,1.6154326,1690.2,1689.1,3.0]
[1693496503212,0.94936267,1690.7,1689.2,0.48]
[1693496503213,1.6154326,1689.9,1689.2,0.48]
[1693496503513,2.19429113,1688.4,1688.2,12.26545477]
[1693496503829,0.002,1689.8,1688.2,12.26545477]
[1693496503830,2.71554523,1689.8,1688.3,1.51300025]
[1693496504095,2.71554523,1689.8,1688.2,6.0]
[1693496504096,4.71354523,1689.3,1688.2,6.0]
[1693496504274,2.71354523,1689.7,1688.6,0.28645477]
[1693496504478,0.002,1689.8,1689.2,0.28645477]
[1693496504724,2.71354523,1689.3,1688.2,2.370912]
[1693496504866,2.370912,1689.6,1688.9,0.28645477]
[1693496505197,2.370912,1689.6,1688.8,5.979]
[1693496505407,0.4815915,1689.6,1689.5,0.28645477]
[1693496505611,0.002,1689.8,1689.5,0.48]
[1693496505813,0.1391328,1690.7,1689.6,0.48]
[1693496505996,2.71354523,1690.6,1689.7,0.28645477]
[1693496506201,2.71354523,1690.6,1689.8,0.48]
[1693496506383,0.1391328,1690.7,1690.0,0.28645477]
[1693496506384,0.0391328,1690.7,1690.0,0.28645477]
[1693496506705,0.0391328,1690.7,1689.7,0.67454548]
[1693496506876,0.0391328,1690.7,1690.2,0.28645477]
[1693496507472,0.0391328,1690.7,1690.3,0.48]
[1693496507870,0.0391328,1690.7,1689.8,6.0]
[1693496507871,0.62574549,1690.7,1689.7,0.28645477]
[1693496508075,0.62574549,1690.7,1689.8,0.48]
[1693496508076,0.0391328,1690.7,1689.8,0.48]
[1693496508311,2.75267803,1690.7,1689.9,0.28645477]
[1693496508622,2.75267803,1690.7,1688.9,0.5979]
[1693496508623,2.71354523,1690.5,1689.7,0.28645477]
[1693496508780,3.30015792,1690.5,1688.9,0.5979]
[1693496508978,2.71354523,1689.5,1688.8,2.3689]
[1693496509173,0.85936431,1689.6,1688.8,2.3689]
[1693496509379,3.29815792,1689.5,1688.8,2.3689]
[1693496509605,2.71154523,1689.3,1688.8,2.3689]
[1693496509806,2.71154523,1688.7,1687.8,0.38845477]
[1693496510006,3.0,1689.2,1687.8,0.38845477]
[1693496510007,2.71154523,1689.2,1687.8,0.38845477]
[1693496510312,2.71154523,1688.5,1687.8,0.1]
[1693496510516,3.58661269,1688.4,1687.8,0.1]
[1693496510809,2.71154523,1687.9,1687.8,0.1]
[1693496511001,3.29815792,1688.3,1687.8,0.1]
[1693496511196,11.0,1689.1,1687.8,0.1]
[1693496511197,2.71154523,1688.1,1687.8,0.1]
[1693496511396,0.58661269,1688.3,1687.8,0.1]
[1693496511709,2.71154523,1688.9,1688.0,0.28845477]
[1693496511898,2.71154523,1688.8,1687.8,0.38845477]
[1693496512209,2.71154523,1688.8,1687.9,0.002]
[1693496512707,3.86136431,1689.6,1687.9,0.002]
[1693496512708,2.71154523,1689.1,1688.3,0.28845477]
[1693496512914,2.71154523,1689.1,1688.4,0.002]
[1693496514011,2.71154523,1689.5,1688.7,0.28845477]
[1693496514213,2.71154523,1689.3,1688.8,0.482]
[1693496514520,2.71154523,1689.3,1688.9,0.002]
[1693496514686,0.86136431,1689.6,1688.7,0.28845477]
[1693496514687,3.57290954,1689.6,1688.8,0.482]
[1693496514883,0.002,1689.5,1688.9,0.002]
[1693496515310,0.002,1689.5,1688.9,0.29045477]
[1693496515605,0.002,1689.5,1689.0,0.002]
[1693496515780,0.002,1689.5,1689.1,0.28845477]
[1693496516388,0.002,1689.5,1688.9,0.28845477]
[1693496516586,2.71154523,1689.1,1689.0,0.002]
[1693496516820,2.71154523,1688.7,1688.4,0.002]
[1693496517020,3.0,1689.3,1688.0,0.002]
[1693496517021,2.71154523,1688.3,1688.0,0.002]
[1693496517240,2.71154523,1688.3,1687.9,0.002]
[1693496517385,0.0046978,1688.8,1687.9,0.002]
[1693496517386,2.71154523,1688.0,1687.9,0.002]
[1693496517705,2.71154523,1688.0,1687.8,0.1]
[1693496517888,2.71154523,1688.5,1687.8,0.1]
[1693496518090,2.71154523,1688.3,1687.9,0.002]
[1693496518448,3.0,1688.7,1687.8,0.1]
[1693496518449,5.71154523,1688.1,1687.8,0.1]
[1693496518719,6.0,1688.2,1686.7,0.1]
[1693496518720,2.71154523,1687.2,1686.7,0.1]
[1693496519123,2.71154523,1687.0,1686.7,0.1]
[1693496519284,2.71154523,1687.0,1685.3,10.78951464]
[1693496519285,2.71154523,1687.0,1685.3,4.78951464]
[1693496519487,0.15776403,1687.6,1685.3,4.78951464]
[1693496519488,2.71154523,1686.6,1685.4,0.28845477]
[1693496519709,2.71154523,1686.2,1685.4,0.28845477]
[1693496519889,2.71154523,1686.2,1685.2,0.61467246]
[1693496520087,3.0,1686.7,1684.9,0.58661269]
[1693496520088,2.71154523,1686.0,1684.9,0.87506746]
[1693496520312,2.61154523,1685.6,1684.9,0.58661269]
[1693496520523,2.61154523,1685.6,1684.6,0.614672]
[1693496520735,2.61154523,1685.6,1684.5,0.38845477]
[1693496520899,2.61154523,1685.6,1684.2,0.17984223]
[1693496520900,2.61154523,1685.6,1684.3,0.38845477]
[1693496521236,2.61154523,1685.6,1684.2,0.17984223]
[1693496521237,2.61154523,1684.5,1684.2,0.17984223]
[1693496521400,2.56154523,1683.8,1683.2,0.1]
[1693496521600,2.55954523,1683.5,1683.2,0.1]
[1693496521818,2.55954523,1683.5,1682.3,0.18324846]
[1693496521819,2.55954523,1683.3,1682.3,0.18324846]
[1693496522019,2.55954523,1682.9,1682.3,0.18324846]
[1693496522339,2.55954523,1682.9,1680.8,6.41945477]
[1693496522340,2.55954523,1682.3,1680.7,0.68394266]
[1693496522496,2.55954523,1681.7,1681.0,0.61482898]
[1693496522703,2.55954523,1681.4,1681.2,0.17209942]
[1693496522901,2.55954523,1681.1,1681.0,0.61482898]
[1693496523107,8.95,1681.6,1680.3,15.0]
[1693496523108,3.0,1681.3,1680.3,15.0]
[1693496523319,2.65042868,1681.0,1680.3,11.72212558]
[1693496523526,12.00045477,1681.1,1680.3,10.61937089]
[1693496523527,3.0,1680.6,1680.3,10.61937089]
[1693496523742,5.65267658,1680.9,1680.3,10.51937089]
[1693496523743,2.65616328,1680.5,1680.3,10.51937089]
[1693496523916,4.16343716,1682.0,1680.6,0.05]
[1693496524117,4.16343716,1682.0,1680.3,10.51937089]
[1693496524118,4.12976145,1682.7,1680.4,1.05193709]
[1693496524321,3.0,1681.6,1680.0,0.16]
[1693496524538,5.95,1681.8,1680.0,0.16]
[1693496524539,6.636,1681.3,1680.0,0.16]
[1693496524726,6.636,1681.3,1678.9,6.0]
[1693496524727,0.006,1681.2,1680.1,0.002]
[1693496524939,0.71541774,1682.3,1679.7,2.9]
[1693496524940,0.71541774,1682.3,1679.7,6.0]
[1693496525266,2.0,1682.5,1679.5,6.0]
[1693496525398,3.0,1681.9,1680.3,6.0]
[1693496525740,2.0,1682.5,1679.6,0.6]
[1693496525741,3.0,1681.8,1679.6,6.6]
[1693496525926,2.0,1682.3,1679.8,6.0]
[1693496525927,3.0,1681.4,1679.8,6.0]
[1693496526138,3.0,1681.9,1679.9,0.6]
[1693496526440,0.07783,1681.8,1680.7,6.0]
[1693496526758,0.07783,1681.8,1680.0,11.84]
[1693496526901,0.07783,1681.8,1680.7,6.0]
[1693496527101,0.07783,1681.8,1680.8,0.6]
[1693496527332,0.07783,1681.8,1680.3,6.0]
[1693496527555,2.459463,1681.8,1680.4,3.0]
[1693496527771,2.459463,1681.8,1680.1,3.48]
[1693496527940,2.459463,1681.8,1680.6,11.84]
[1693496527941,0.008,1681.7,1680.6,11.84]
[1693496528141,2.0,1683.1,1680.6,11.84]
[1693496528142,5.0,1683.1,1681.2,6.0]
[1693496528331,5.0,1682.9,1681.3,6.0]
[1693496528533,5.0,1682.9,1681.4,3.0]
[1693496528850,2.0,1682.9,1681.4,6.0]
[1693496529027,2.0,1682.9,1680.7,1.184]
[1693496529028,2.0,1683.2,1681.7,6.0]
[1693496529225,2.0,1682.9,1681.8,3.0]
[1693496529430,2.0,1683.0,1681.8,3.0]
[1693496529627,2.0,1683.8,1681.9,0.3]
[1693496529826,3.5882,1684.3,1681.9,0.3]
[1693496529827,2.0,1683.1,1681.9,0.3]
[1693496530052,2.0,1683.7,1682.0,6.48]
[1693496530256,2.0,1683.5,1682.5,6.0]
[1693496530450,2.0,1683.5,1682.0,0.48]
[1693496530451,2.0,1683.5,1682.6,3.6]
[1693496530638,2.0,1684.0,1682.6,0.6]
[1693496530838,2.0,1683.4,1682.1,6.0]
[1693496531171,0.002,1683.3,1682.2,9.48]
[1693496531387,0.002,1683.9,1682.7,6.0]
[1693496531718,0.002,1683.9,1682.2,0.48]
[1693496531719,5.0,1683.0,1682.5,11.77040452]
[1693496531956,8.99,1684.1,1681.9,0.3]
[1693496531957,3.0,1682.9,1681.9,0.3]
[1693496532127,1.6529882,1682.4,1681.2,6.636]
[1693496532332,1.6529882,1682.4,1680.6,7.2242]
[1693496532643,1.6529882,1682.4,1681.1,11.84]
[1693496533283,0.01729026,1684.0,1681.7,17.84]
[1693496533554,3.0,1684.1,1681.9,6.0]
[1693496533772,0.86351201,1684.6,1682.2,11.77040452]
[1693496533773,3.0,1683.9,1682.2,11.77040452]
[1693496533925,3.0,1683.9,1682.3,1.76365314]
[1693496534132,2.993,1683.7,1682.7,0.007]
[1693496534344,2.0,1684.2,1682.9,0.007]
[1693496534531,2.993,1683.9,1683.0,0.002]
[1693496534725,2.993,1683.7,1683.0,0.002]
[1693496534950,3.0,1684.4,1683.0,0.002]
[1693496534951,2.993,1684.5,1683.0,0.002]
[1693496535271,2.380111,1684.4,1683.5,0.007]
[1693496535426,0.002,1684.3,1683.3,0.002]
[1693496535629,2.993,1684.4,1683.2,0.489]
[1693496535839,10.02,1684.7,1683.2,0.489]
[1693496535840,0.002,1684.3,1683.6,0.007]
[1693496536033,10.02,1684.7,1683.2,0.48]
[1693496536034,10.02,1684.7,1683.9,0.007]
[1693496536258,0.002,1684.6,1683.9,0.007]
[1693496536559,0.002,1684.6,1684.1,0.007]
[1693496536759,0.002,1684.6,1683.6,11.847]
[1693496536926,0.002,1684.6,1684.4,0.007]
[1693496537262,10.02,1684.7,1684.4,0.007]
[1693496537263,10.022,1684.7,1684.4,0.007]
[1693496537561,2.993,1686.1,1684.9,0.007]
[1693496537741,2.993,1685.8,1684.9,0.007]
[1693496537944,5.56831679,1686.8,1685.3,0.007]
[1693496538143,2.993,1686.6,1685.6,0.007]
[1693496538332,9.0046273,1687.3,1685.6,0.007]
[1693496538333,2.993,1687.1,1685.6,0.007]
[1693496538538,2.993,1687.1,1686.3,0.007]
[1693496538761,0.01472085,1686.0,1685.6,6.167]
[1693496539090,0.0046273,1687.3,1685.6,6.167]
[1693496539091,3.0,1687.1,1685.7,4.0967]
[1693496539247,0.0046273,1687.3,1685.7,4.0967]
[1693496539248,0.0046273,1687.3,1685.8,6.167]
[1693496539445,0.0046273,1687.3,1685.9,5.0]
[1693496539657,0.0046273,1687.3,1686.0,6.167]
[1693496539859,0.0046273,1687.3,1686.3,11.77040452]
[1693496540251,0.0046273,1687.3,1686.4,3.0]
[1693496540447,0.002,1687.2,1686.5,6.636]
[1693496540631,0.0046273,1687.3,1686.5,6.636]
[1693496540632,0.0046273,1687.3,1686.8,11.84]
[1693496540836,0.0046273,1687.3,1686.6,6.167]
[1693496541045,0.59123999,1687.3,1686.7,0.48]
[1693496541267,3.101,1689.0,1686.7,0.48]
[1693496541466,3.101,1689.0,1686.9,11.84]
[1693496541467,3.0,1688.7,1686.9,11.84]
[1693496541779,3.0,1688.3,1687.0,1.664]
[1693496541952,3.58661269,1688.6,1687.0,4.664]
[1693496542148,0.58661269,1688.2,1687.0,4.664]
[1693496542348,3.0,1687.8,1687.0,0.48]
[1693496542577,8.96,1688.9,1687.0,2.371984]
[1693496542578,3.0,1687.1,1687.0,2.371984]
[1693496542880,0.58661269,1687.1,1686.3,0.004]
[1693496543187,3.0,1687.3,1686.3,0.004]
[1693496543403,0.58661269,1687.8,1686.3,0.004]
[1693496543404,3.0,1687.7,1686.3,0.004]
[1693496543534,0.58661269,1687.8,1686.7,11.77040452]
[1693496543834,0.002,1687.7,1686.8,1.17704045]
[1693496544039,0.002,1687.7,1686.7,11.77040452]
[1693496544239,3.0,1688.6,1686.7,11.77040452]
[1693496544240,3.0,1688.2,1686.7,11.77040452]
[1693496544473,0.56653984,1688.1,1686.8,3.0]
[1693496544674,0.56653984,1688.1,1686.6,11.84]
[1693496544675,3.0,1688.0,1686.7,4.184]
[1693496544880,6.0,1688.5,1686.7,4.184]
[1693496544881,3.0,1687.7,1686.7,4.184]
[1693496545171,0.002,1687.6,1686.7,4.184]
[1693496545540,0.002,1687.8,1686.7,4.184]
[1693496545756,0.85409534,1689.0,1687.4,6.636]
[1693496545989,0.101,1689.0,1687.4,6.636]
[1693496546289,0.101,1689.0,1687.5,3.6636]
[1693496546290,3.0,1688.8,1687.5,3.6636]
[1693496546471,3.0,1688.6,1687.6,0.48]
[1693496546872,3.0,1688.4,1687.6,0.48]
[1693496547024,3.0,1688.6,1687.6,0.48]
[1693496547185,3.0,1688.4,1687.6,0.48]
[1693496547382,0.101,1689.0,1687.6,0.48]
[1693496547589,3.0,1688.6,1687.6,4.70504045]
[1693496547785,0.101,1689.0,1687.6,4.70504045]
[1693496548288,0.101,1689.0,1687.8,11.84]
[1693496548501,0.101,1689.0,1687.9,4.06661269]
[1693496548880,0.101,1689.0,1687.9,3.48]
[1693496548881,0.002,1688.9,1687.9,3.48]
[1693496549085,0.002,1688.9,1688.0,0.348]
[1693496549292,0.002,1688.9,1688.1,0.48]
[1693496550100,0.053,1689.0,1688.1,0.48]
[1693496550302,0.053,1689.0,1688.4,11.84]
[1693496550640,0.101,1689.2,1688.5,6.664]
[1693496550958,0.101,1689.2,1688.6,6.636]
[1693496551168,0.0013923,1689.9,1688.9,2.0]
[1693496551292,0.0013923,1689.9,1688.7,3.0]
[1693496551614,0.0013923,1689.9,1688.8,2.78]
[1693496551828,0.0013923,1689.9,1689.8,2.9277433]
[1693496551992,0.0013923,1689.9,1689.8,1.76169566]
[1693496552911,0.0013923,1689.9,1689.2,3.0]
[1693496553106,3.0013923,1689.9,1689.3,0.01]
[1693496553313,3.0013923,1689.9,1688.9,2.4593]
[1693496553314,3.0,1689.5,1688.9,2.4593]
[1693496553516,3.0,1689.1,1689.0,0.01]
[1693496553717,3.0,1688.9,1687.5,2.01]
[1693496553932,0.53350281,1689.4,1687.9,2.0]
[1693496553933,0.002,1689.1,1687.9,2.0]
[1693496554236,0.002,1689.3,1688.0,12.43661269]
[1693496554395,0.002,1689.4,1688.1,1.25366127]
[1693496554599,3.0,1689.3,1688.2,0.01]
[1693496554795,3.0,1689.1,1688.2,0.01]
[1693496555036,0.002,1689.0,1688.1,0.01]
[1693496555328,0.002,1689.2,1688.1,1.195]
[1693496555501,3.0,1689.5,1688.2,0.01]
[1693496555502,0.002,1689.4,1688.2,0.01]
[1693496555904,3.0,1689.2,1688.2,0.01]
[1693496556133,0.002,1689.1,1688.2,0.01]
[1693496556617,0.002,1689.1,1687.6,0.30946234]
[1693496556618,3.0,1688.5,1687.6,0.30946234]
[1693496556818,3.0,1688.0,1685.9,6.736]
[1693496557120,3.0,1688.3,1686.9,2.0]
[1693496557328,3.0,1688.7,1686.9,2.0]
[1693496557505,0.002,1689.1,1687.4,2.0]
[1693496557695,0.002,1689.1,1687.1,12.167]
[1693496557696,0.002,1689.1,1687.6,2.0]
[1693496557898,0.002,1689.1,1688.1,11.84]
[1693496558300,0.002,1689.1,1688.2,5.0]
[1693496558504,0.002,1689.1,1688.2,3.0]
[1693496558726,0.002,1689.1,1688.3,0.48]
[1693496558935,0.002,1689.1,1688.3,0.828]
[1693496559435,3.0,1689.7,1688.4,0.002]
[1693496559636,3.002,1689.4,1688.4,0.002]
[1693496559810,0.002,1689.3,1688.4,0.002]
[1693496560011,3.0,1689.1,1688.4,0.002]
[1693496560332,0.002,1689.0,1687.9,0.002]
[1693496560631,0.53260937,1689.0,1687.9,0.002]
[1693496560838,0.002,1688.9,1688.1,2.5882]
[1693496561038,0.0013923,1689.9,1688.5,2.0]
[1693496561039,0.002,1689.6,1688.5,2.0]
[1693496561331,0.002,1689.8,1688.5,2.0]
[1693496561536,3.0,1689.6,1688.4,6.167]
[1693496561731,0.002,1689.5,1688.4,8.52824045]
[1693496561906,0.002,1689.5,1688.6,6.167]
[1693496562115,0.002,1689.5,1688.5,3.0]
[1693496562337,3.0,1689.1,1688.3,11.77240452]
[1693496562528,0.002,1689.0,1688.4,0.002]
[1693496562702,3.0,1689.1,1688.4,0.002]
[1693496563037,0.002,1689.0,1688.5,6.167]
[1693496563238,0.002,1689.4,1688.5,6.167]
[1693496563531,0.53260937,1689.4,1688.4,1.8831645]
[1693496563737,0.53060937,1689.4,1688.4,4.8831645]
[1693496563932,0.002,1689.3,1688.5,0.48831645]
[1693496564135,3.0,1689.1,1688.3,11.77240452]
[1693496564320,3.0,1688.8,1688.4,0.002]
[1693496564523,3.53060937,1688.8,1688.2,0.002]
[1693496564722,3.0,1688.8,1687.9,0.002]
[1693496565239,2.75,1688.8,1687.9,2.372826]
[1693496565443,3.0,1689.4,1688.0,0.002]
[1693496565444,2.75,1688.3,1688.0,0.002]
[1693496565668,0.53060937,1688.2,1687.7,0.002]
[1693496565945,2.75,1688.0,1687.7,0.002]
[1693496566110,3.0,1688.9,1687.7,0.002]
[1693496566111,3.28060937,1688.3,1687.7,0.002]
[1693496566715,2.75,1688.3,1687.7,0.002]
[1693496566915,0.25,1688.6,1687.9,0.25]
[1693496567129,2.75,1688.7,1688.0,0.002]
[1693496567348,0.002,1688.9,1688.0,0.25]
[1693496567655,0.002,1688.9,1688.1,0.002]
[1693496567855,0.002,1688.9,1688.2,0.25]
[1693496568147,0.002,1688.9,1687.7,6.167]
[1693496568148,2.75,1688.8,1688.3,3.4097433]
[1693496568335,2.75,1688.8,1688.4,0.002]
[1693496568542,2.75,1688.8,1688.4,2.9297433]
[1693496568742,2.752,1689.2,1688.5,2.9277433]
[1693496569060,0.002,1689.1,1688.5,2.9277433]
[1693496569650,2.75,1688.8,1688.5,2.9277433]
[1693496569956,2.75,1688.8,1688.3,0.002]
[1693496569957,2.75,1688.4,1688.3,0.002]
[1693496570255,3.28060937,1688.4,1687.7,0.002]
[1693496570456,3.0,1688.7,1687.7,0.002]
[1693496570457,2.75,1688.0,1687.7,0.002]
[1693496570670,2.75,1688.2,1687.7,0.002]
[1693496570977,2.752,1688.9,1687.9,0.25]
[1693496571126,2.61428672,1690.0,1688.0,0.002]
[1693496571127,2.75,1688.7,1688.0,0.002]
[1693496571327,2.752,1688.9,1688.0,0.002]
[1693496571550,2.75,1688.9,1688.0,0.002]
[1693496572024,0.002,1689.1,1688.0,0.002]
[1693496572025,2.75,1688.3,1688.0,0.002]
[1693496572228,2.75,1688.1,1687.9,0.002]
[1693496572459,2.75,1688.3,1687.6,0.166]
[1693496572628,2.75,1688.1,1687.7,0.002]
[1693496573230,2.75,1688.3,1687.7,0.002]
[1693496573762,2.75,1687.9,1687.7,0.002]
[1693496574001,2.75,1687.9,1686.3,2.30958456]
[1693496574002,2.75,1687.2,1686.3,0.30958456]
[1693496574286,5.9277433,1687.8,1685.9,0.1]
[1693496574287,2.75,1686.8,1685.9,0.1]
[1693496574629,2.75,1686.5,1685.9,0.1]
[1693496574832,2.75,1686.5,1686.0,0.1]
[1693496575140,6.0,1687.2,1686.0,0.1]
[1693496575141,2.75,1686.8,1686.0,0.1]
[1693496575474,2.75,1687.2,1686.3,0.25]
[1693496575632,2.75,1687.2,1686.1,6.224]
[1693496575829,2.75,1687.2,1686.3,0.25]
[1693496576465,2.75,1687.4,1686.3,3.25]
[1693496576647,0.00333177,1687.6,1686.3,3.25]
[1693496576648,2.75333177,1687.6,1686.5,0.25]
[1693496576968,2.75,1687.5,1686.6,0.48]